{"text_format":"3","workbook":"xlsx","n_sheets":1,"sheets":["Sheet1"],"not_rendered":{"defined_names":1},"read":"whole","date_system":"1900"}

{"sheet":"Sheet1","index":0,"n_rows":23,"n_cols":10,"rows_kept":23,"merged":[[0,0,0,9],[1,0,2,0],[1,1,2,1],[1,2,2,2],[1,3,2,3],[1,4,2,4],[1,5,1,6],[1,7,1,8],[1,9,2,9],[3,1,3,2],[9,1,9,2],[21,0,21,5],[22,0,22,9]]}
["2024年“A”项目土石方工程量清单与报价表"]
["序号","项目名称","项目特征","单位","工程量","控制价（含税）",null,"投标报价",null,"备注"]
[{"$nulls":5},"全费用单价限价（元）","合价（元）","班组所报全费用单价（元）","含税合价（元）"]
["一","土石方工程"]
[1,"土石方开挖、场内转运、回填\n","1.完成项目用地红线范围内的场平挖填运土石方工程，工作内容包括但不限于的工程内容为：（1）现状的乔灌木、地被植物和地表其他内容的清理、杂树砍伐、开挖、运输和弃置等；（2）土石方开挖、土石方转运、石方破碎大改小等；开挖的各类土、石(含淤泥)综合，现场建(废)渣等综合考虑。（3）取土、借土、运输、回填、压实等全部工程内容，以上工作内容相关费用包含在报价内。\n2.开挖深度：按甲方要求综合考虑。\n3.开挖方式、场内运输方式：投标人自行确定，路基填挖交界处的台阶搭设及开挖方式的风险由投标人自行承担。\n4.开挖方案和边坡施工防护及变形观测措施及对管线、构筑物、建筑物等采取的保护措施须经业主批准，满足安全、文明施工相关规范及规定，包含在投标报价中。\n5.填方来源、取土(石)运输及费用：场内土、石方，场内运输及转运费用由投标人自行考虑，包含在投标报价中。                                                         6、回填范围：包含总平土石方回填、桥头回填、陡坡路堤及填挖交界、特殊路基回填、挡土墙周边的土石方回填，回填时不得破坏已完成实施的挡土墙。\n7.回填后的碾压密实度应达到设计和规范要求（需分层回填碾压，土、石方松铺厚分别为30cm、40cm/层），并承担检测费用。\n8.开挖完成后碾压密实度应达到设计和规范要求，并承担检测费用。\n9.表皮土壤单独开挖运输至甲方指定地点（场内）堆放：相关费用包含在报价内。\n10.工程量以开挖方量计算，以测绘工程量为准。","m3",{"$f":"89115.59+1241+21439+39+11184.96+1312-47842.89","v":76488.66},15,{"$f":"F5*E5","v":1147329.9}]
[2,"土石方开挖、外运、弃土","1.废弃料品种：土石综合\n2.场地内转运方式、运距：投标人自行考虑，包含在投标报价中。\n3.弃土石外运：由招标人指定弃土场位置（投标人不得自行处理弃方），弃土场机械由投标人提供，运距约5-7KM，投标人不单独考虑弃土场费用。                                     \n4.运输方式：按相关规范要求投标人自行考虑。                      \n5.土石方场外运输相关手续、安全、文明措施费用：投标人自行考虑，包含在投标报价中。","m3",{"$f":"46601.89+1241","v":47842.89},26,{"$f":"F6*E6","v":1243915.14}]
[3,"路基换填石渣分层碾压","1.土石类别：石渣\n2.回填深度：按设计要求\n3.回填方式：由投标人自行考虑，包含在投标报价中。\n4.场内转运：由投标人自行考虑，包含在投标报价中。\n5.投标人应对施工现场及周边条件进行仔细勘察，充分考虑各种因素，综合报价\n6.填方来源、取土(石)运输、堆场及费用：采用挖方中（包括大开挖或隧道开挖）的石方进行破碎利用，粒径需满足设计及规范要求，堆场及堆放措施由投标人自行考虑。\n7.回填后的碾压密实度应达到设计和规范要求（需分层回填碾压，石渣松铺厚为40cm/层），并承担检测费用。                                                    \n8.堆场及堆放措施需经业主批准，满足安全、文明施工相关规范及规定。                9.工程量以施工图范围内要求的实际施工面积*回填厚度计算。","m3",9214,26,{"$f":"F7*E7","v":239564}]
[4,"路基换填分层碾压","1.土石类别：路基合格材料\n2.回填深度：按设计要求\n3.回填方式：由投标人自行考虑，包含在投标报价中。\n4.场内转运：由投标人自行考虑，包含在投标报价中。\n5.投标人应对施工现场及周边条件进行仔细勘察，充分考虑各种因素，综合报价\n6.填方来源、取土(石)运输、堆场及费用：采用挖方中的土石方进行破碎利用，粒径需满足设计及规范要求，堆场及堆放措施由投标人自行考虑。\n7.回填后的碾压密实度应达到设计和规范要求（需分层回填碾压，土、石方松铺厚分别为30cm、40cm/层），并承担检测费用。                                                    8.堆场及堆放措施需经业主批准，满足安全、文明施工相关规范及规定。                9.工程量以施工图范围内要求的实际施工面积*回填厚度计算。","m3",5890,22,{"$f":"F8*E8","v":129580}]
[5,"回填砂卵石","1.土石类别：砂卵石（甲供）\n2.回填深度：按设计要求\n3.回填方式：由投标人自行考虑，包含在投标报价中。\n4.材料转运：由投标人自行考虑，包含在投标报价中。\n5.投标人应对施工现场及周边条件进行仔细勘察，充分考虑各种因素，综合报价\n6.回填后的碾压密实度应达到设计和规范要求（需分层回填碾压，土、石方松铺厚分别为30cm、40cm/层），并承担检测费用。                                                        \n7.堆场及堆放措施需经业主批准，满足安全、文明施工相关规范及规定。                8.工程量以施工图要求的面积和回填厚度计算。","m3",{"$f":"6335+2912","v":9247},20,{"$f":"F9*E9","v":184940}]
["二","挡土墙工程"]
[6,"挡土墙土石方开挖","1.土壤类别：土石方综合考虑； \n2.开挖、回填类型：包括沟、槽和坑项目，土石方种类和深度综合考虑，\n3.开挖方式：投标人自行综合考虑\n4.弃土运距及费用：综合考虑，不再另计。                                                                                             \n5.工程量以开挖方量计算，以测绘工程量为准。","m3",392,15,{"$f":"F11*E11","v":5880}]
[7,"C20混凝土垫层浇筑","1.厚度：综合考虑\n2.混凝土强度等级：C20商品砼，混凝土泵送方式及模板措施等投标人自行考虑，包含在综合单价内\n3.其余做法要求：满足设计及现行施工技术、质量验收规范要求","m3",2,440,880]
[8,"土夹石回填","1.回填材料：土夹石，碎石含量不小于30%\n2.填方来源、运距：投标人自行考虑\n3.未尽事宜满足设计及现行技术、质量验收规范要求\n4.工程量以施工图要求的面积和回填厚度计算。","m3",64,50,3200]
[9,"混凝土挡墙墙身 C30","1.厚度：综合考虑\n2.混凝土强度等级：C30混凝土挡墙，混凝土泵送方式措施等投标人自行考虑，包含在综合单价内，不再另计；；模板单列另计\n3.其余做法要求：满足设计及现行施工技术、质量验收规范要求","m3",105,460,48300]
[10,"粘土回填","1.土石类别：粘土\n2.回填深度：综合\n3.回填方式：由投标人自行考虑，包含在投标报价中。\n4.场内转运：由投标人自行考虑，包含在投标报价中。\n5.投标人应对施工现场及周边条件进行仔细勘察，充分考虑各种因素，综合报价\n6.回填后的碾压密实度应达到设计和规范要求（需分层回填碾压），并承担检测费用、土石方工程涉及到的专项施工方案的编制及专家论证由投标人负责。                                                        7.堆场及堆放措施需经业主批准，满足安全、文明施工相关规范及规定。                8.工程量以施工图要求的面积和回填厚度计算。","m3",8,8,64]
[11,"级配碎石滤层","1.位置：挡墙背部滤水管处\n2.厚度及做法：30cm厚，具体做法、部位详设计\n3.其他：未尽事宜满足设计及现行技术、质量验收规范要求\n4.工程量以施工图要求的面积和回填厚度计算。","m3",28,190,5320]
[12,"现浇构件钢筋HPB300直径 φ10以内 制作、安装","1.钢筋种类、规格：钢筋HPB300直径 φ10以内 \n2.钢筋连接方式：各种连接方式投标人综合考虑在报价中\n3.弧形构件钢筋以及桩钢筋笼的吊装费用，由投标人综合考虑，进入综合单价中\n4.投标人综合考虑埋设的方式，以及钢筋笼吊装等费用均包括在所报综合单价中不再另行计取；\n5.钢筋的复检、送检所需的材料费由投标人自行考虑在投标报价中不再另行计取；\n6.包含完成该工作所需的机械进出场费、材料场内外运输、二次或多次转运费均已包含在单价内，甲方不提供钢筋加工制作料场，由投标人自行考虑\n7.其余做法：满足设计及现行施工技术、质量验收规范要求","t",0.39,6000,2340]
[13,"现浇构件钢筋HRB400E直径 ≥φ10制作、安装","1.钢筋种类、规格：螺纹钢HRB400E ，钢筋直径≥Φ10\n2.钢筋连接方式：各种连接方式投标人综合考虑在报价中\n3.弧形构件钢筋以及桩钢筋笼的吊装费用，由投标人综合考虑，进入综合单价中\n4.投标人综合考虑埋设的方式，以及钢筋笼吊装等费用均包括在所报综合单价中不再另行计取\n5.钢筋的复检、送检所需的材料费由投标人自行考虑在投标报价中不再另行计取；\n6.包含完成该工作所需的机械进出场费、材料场内外运输、二次或多次转运费均已包含在单价内，甲方不提供钢筋加工制作料场，由投标人自行考虑\n7.其余做法：满足设计及现行施工技术、质量验收规范要求","t",{"$f":"2.456+2.535+5.468","v":{"v":10.459,"d":"10.46"}},6000,62754]
[14,"PVC弹簧透水管 DN100mm","1.材质及规格 ：PVC弹簧透水管 DN100mm\n2.连接形式 ：综合考虑\n3.管道检验及试验要求：满足规范及验收要求。","m",59,23,1357]
[15,"PVC横向排水管 DN100mm","1.材质及规格 ：PVC横向排水管 DN100mm\n2.连接形式 ：综合考虑\n3.管道检验及试验要求：满足规范及验收要求。","m",19,19,361]
[16,"挡墙模板","1.支模高度：综合、超高模板部分由投标人综合考虑在投标报价中\n2.模板类型：木模、组合钢模板、竹胶合板等综合\n3.支架材料：钢管、竹、木支架综合，断面尺寸、材质、工艺等符合设计和施工验收规范要求\n4.模板范围：挡墙模板\n5.本项目投标人应根据施工经验,现场实际情况和企业自身情况综合报价,不论采用何种支模方式均综合报价（含脚手架费用）                                                                 6.材料场内运输、转运费用已综合考虑在单价中","㎡",253.23,85,21524.55]
["合  计",{"$nulls":5},{"$f":"SUM(G5:G21)","v":3097309.59},null,{"$f":"SUM(I5:I21)","v":0}]
["注：1、全费用综合单价，包括人工费、材料费、机械费、管理费、利润、除安全文明施工费外的总价措施费、大型机械进出场费及进出场外的其他单价措施费、降排水费、规费、销项增值税和附加税等费用；以上工程量均为暂估量，土石方工程以测绘报告为准，因为量差发生的合同价格调整，合同单价均不予以调整。\n2.中标单位须积极配合甲方完成现场青苗赔偿等相关事宜，不得以青苗赔偿事宜为由影响施工进度。\n3.现场安全环保文明施工管理要求：（1）由公司统一发放印有“兴绿园林”字样和LOGO的安全帽和反光背心，班组按实名制领取，使用完后交回项目部，否则按采购费用扣款，其余参照合同附件中安全环保管理协议执行。（2）现场雾炮机由甲方提供，投标单位需安排人员管理使用，人工费、水费、油费及管理费用综合考虑到投标报价中，不单独计取。（3）防尘网由甲方提供，投标单位安排人员进行覆盖、回收、现场转移等，人工费综合考虑到投标报价中，不单独计取。                                                                                                                                                 4.现场施工的环保设施设备（水车（带雾炮功能）2辆及以上，挖机、钩机、推土机、装载机等需自带雾喷）、对于临边及孔洞的防护、进出车辆进行冲洗管理、投标单位自己操作人员的劳保防护用品、临时用水用电（水电接口由甲方提供至红线内，水电费用投标人自行考虑，若水电未及时安装需由承包商用水车供水以满足土石方施工环保降尘要求）、必要安全措施等由投标单位承担；施工内容的检测（复检）检测费用和送样检测等费用由投标单位承担；机械进、出场费用由投标单位综合考虑，包含在投标报价中。\n5.土石方工程涉及到的专项施工方案的编制及专家论证由投标人负责。"]